[Event "Titled Tuesday Blitz November 08 Late 2022"]
[White "Mikhalsky, Vladimir"]
[Black "Dahlgren, James Allen"]
[WhiteFideId "14144352"]
[BlackFideId "22256873"]
[WhiteElo "2271"]
[BlackElo "2195"]
[Result "1-0"]
[Round "03"]
[TimeControl "180+1"]
[Date "2022.11.09"]
[WhiteClock "0:00:08"]
[BlackClock "0:00:06"]

1. d4 {[%clk 0:02:38]}  e6 {[%clk 0:03:00]} 2. e4 {[%clk 0:02:34]}  Nf6 {[%clk 0:03:01]} 3. Nc3 {[%clk 0:02:27]}  d5 {[%clk 0:03:01]} 4. e5 {[%clk 0:02:27]}  Nfd7 {[%clk 0:03:02]} 5. f4 {[%clk 0:02:27]}  c5 {[%clk 0:03:02]} 6. Nf3 {[%clk 0:02:28]}  Nc6 {[%clk 0:03:01]} 7. Be3 {[%clk 0:02:28]}  c4 {[%clk 0:02:53]} 8. Qd2 {[%clk 0:02:21]}  Rb8 {[%clk 0:02:52]} 9. f5 {[%clk 0:02:18]}  b5 {[%clk 0:02:41]} 10. fxe6 {[%clk 0:02:18]}  fxe6 {[%clk 0:02:42]} 11. Be2 {[%clk 0:02:15]}  b4 {[%clk 0:02:38]} 12. Nd1 {[%clk 0:02:14]}  Be7 {[%clk 0:02:33]} 13. Ng5 {[%clk 0:02:11]}  Nb6 {[%clk 0:02:27]} 14. O-O {[%clk 0:02:00]}  Qc7 {[%clk 0:02:04]} 15. Nf7 {[%clk 0:01:52]}  Rf8 {[%clk 0:02:04]} 16. Nd6+ {[%clk 0:01:37]}  Bxd6 {[%clk 0:02:01]} 17. exd6 {[%clk 0:01:37]}  Qxd6 {[%clk 0:01:59]} 18. Bf4 {[%clk 0:01:37]}  e5 {[%clk 0:01:36]} 19. dxe5 {[%clk 0:01:36]}  Qc5+ {[%clk 0:01:36]} 20. Ne3 {[%clk 0:01:31]}  d4 {[%clk 0:01:21]} 21. Ng4 {[%clk 0:01:21]}  Rxf4 {[%clk 0:01:02]} 22. Qxf4 {[%clk 0:01:15]}  d3+ {[%clk 0:01:03]} 23. Kh1 {[%clk 0:01:14]}  dxe2 {[%clk 0:01:01]} 24. Qf7+ {[%clk 0:01:13]}  Kd8 {[%clk 0:00:59]} 25. Rfd1+ {[%clk 0:00:59]}  exd1=Q+ {[%clk 0:00:57]} 26. Rxd1+ {[%clk 0:00:59]}  Nd4 {[%clk 0:00:35]} 27. c3 {[%clk 0:00:58]}  Bxg4 {[%clk 0:00:34]} 28. Rxd4+ {[%clk 0:00:56]}  Kc8 {[%clk 0:00:11]} 29. Rxg4 {[%clk 0:00:49]}  Qxe5 {[%clk 0:00:06]} 30. h3 {[%clk 0:00:38]}  Qe1+ {[%clk 0:00:05]} 31. Kh2 {[%clk 0:00:38]}  Qe5+ {[%clk 0:00:05]} 32. Rg3 {[%clk 0:00:30]}  Nd7 {[%clk 0:00:06]} 33. Qxc4+ {[%clk 0:00:29]}  Kb7 {[%clk 0:00:06]} 34. Qxb4+ {[%clk 0:00:29]}  Ka8 {[%clk 0:00:06]} 35. Qa4 {[%clk 0:00:27]}  Nb6 {[%clk 0:00:05]} 36. Qc6+ {[%clk 0:00:26]}  Rb7 {[%clk 0:00:05]} 37. Qf3 {[%clk 0:00:25]}  Kb8 {[%clk 0:00:03]} 38. b3 {[%clk 0:00:24]}  Nc8 {[%clk 0:00:03]} 39. c4 {[%clk 0:00:24]}  Re7 {[%clk 0:00:03]} 40. h4 {[%clk 0:00:23]}  h6 {[%clk 0:00:02]} 41. Kh3 {[%clk 0:00:23]}  g5 {[%clk 0:00:02]} 42. h5 {[%clk 0:00:20]}  Qe6+ {[%clk 0:00:02]} 43. Qg4 {[%clk 0:00:20]}  Qxg4+ {[%clk 0:00:03]} 44. Kxg4 {[%clk 0:00:20]}  Nd6 {[%clk 0:00:03]} 45. Rd3 {[%clk 0:00:20]}  Re4+ {[%clk 0:00:03]} 46. Kf3 {[%clk 0:00:20]}  Rf4+ {[%clk 0:00:03]} 47. Kg3 {[%clk 0:00:19]}  Kc7 {[%clk 0:00:04]} 48. Rd5 {[%clk 0:00:18]}  Ne4+ {[%clk 0:00:04]} 49. Kh2 {[%clk 0:00:17]}  Rf2 {[%clk 0:00:04]} 50. Ra5 {[%clk 0:00:16]}  Kb6 {[%clk 0:00:04]} 51. Ra4 {[%clk 0:00:16]}  a5 {[%clk 0:00:03]} 52. c5+ {[%clk 0:00:16]}  Nxc5 {[%clk 0:00:03]} 53. Rd4 {[%clk 0:00:16]}  Rxa2 {[%clk 0:00:03]} 54. Rd6+ {[%clk 0:00:16]}  Kb5 {[%clk 0:00:03]} 55. Rxh6 {[%clk 0:00:17]}  Nxb3 {[%clk 0:00:03]} 56. Rg6 {[%clk 0:00:17]}  a4 {[%clk 0:00:04]} 57. Rxg5+ {[%clk 0:00:17]}  Kb4 {[%clk 0:00:05]} 58. h6 {[%clk 0:00:17]}  Rc2 {[%clk 0:00:05]} 59. h7 {[%clk 0:00:17]}  Rc8 {[%clk 0:00:04]} 60. Rg8 {[%clk 0:00:17]}  Rxg8 {[%clk 0:00:02]} 61. hxg8=Q {[%clk 0:00:17]}  a3 {[%clk 0:00:02]} 62. Qf8+ {[%clk 0:00:17]}  Kc3 {[%clk 0:00:02]} 63. Qf6+ {[%clk 0:00:16]}  Kc2 {[%clk 0:00:02]} 64. Qf5+ {[%clk 0:00:16]}  Kb2 {[%clk 0:00:02]} 65. Qe5+ {[%clk 0:00:15]}  Kb1 {[%clk 0:00:01]} 66. Qe4+ {[%clk 0:00:16]}  Kb2 {[%clk 0:00:01]} 67. Qe2+ {[%clk 0:00:15]}  Kb1 {[%clk 0:00:01]} 68. Qd3+ {[%clk 0:00:16]}  Kb2 {[%clk 0:00:02]} 69. Qe2+ {[%clk 0:00:15]}  Kb1 {[%clk 0:00:02]} 70. Qd1+ {[%clk 0:00:14]}  Kb2 {[%clk 0:00:03]} 71. g4 {[%clk 0:00:14]}  a2 {[%clk 0:00:03]} 72. g5 {[%clk 0:00:15]}  a1=Q {[%clk 0:00:04]} 73. Qxa1+ {[%clk 0:00:14]}  Nxa1 {[%clk 0:00:05]} 74. g6 {[%clk 0:00:15]}  Kc3 {[%clk 0:00:05]} 75. g7 {[%clk 0:00:15]}  Nc2 {[%clk 0:00:06]} 76. g8=Q {[%clk 0:00:14]}  Ne3 {[%clk 0:00:06]} 77. Qc8+ {[%clk 0:00:14]}  Nc4 {[%clk 0:00:07]} 78. Qc5 {[%clk 0:00:14]}  Kd3 {[%clk 0:00:07]} 79. Kg3 {[%clk 0:00:14]}  Nd2 {[%clk 0:00:08]} 80. Qd5+ {[%clk 0:00:14]}  Ke3 {[%clk 0:00:08]} 81. Kg2 {[%clk 0:00:13]}  Ne4 {[%clk 0:00:07]} 82. Qe5 {[%clk 0:00:14]}  Kd3 {[%clk 0:00:07]} 83. Kf3 {[%clk 0:00:12]}  Nd2+ {[%clk 0:00:08]} 84. Kf4 {[%clk 0:00:12]}  Nc4 {[%clk 0:00:08]} 85. Qd5+ {[%clk 0:00:12]}  Kc3 {[%clk 0:00:09]} 86. Qc5 {[%clk 0:00:11]}  Kd3 {[%clk 0:00:09]} 87. Kf5 {[%clk 0:00:10]}  Ne3+ {[%clk 0:00:09]} 88. Ke6 {[%clk 0:00:10]}  Nc4 {[%clk 0:00:09]} 89. Qd5+ {[%clk 0:00:10]}  Kc3 {[%clk 0:00:09]} 90. Qf3+ {[%clk 0:00:10]}  Kd4 {[%clk 0:00:08]} 91. Kf5 {[%clk 0:00:09]}  Ne3+ {[%clk 0:00:08]} 92. Kf4 {[%clk 0:00:09]}  Nd5+ {[%clk 0:00:08]} 93. Kg5 {[%clk 0:00:09]}  Nc3 {[%clk 0:00:09]} 94. Qf2+ {[%clk 0:00:09]}  Kd3 {[%clk 0:00:09]} 95. Kf5 {[%clk 0:00:09]}  Nd5 {[%clk 0:00:06]} 96. Qf3+ {[%clk 0:00:09]}  Ne3+ {[%clk 0:00:06]} 97. Kf4 {[%clk 0:00:08]} 1-0


[Site "https://www.chess.com"]

[Event "Titled Tuesday Blitz November 08 Late 2022"]
[White "Musovic, Armin"]
[Black "Kobo, Ori"]
[WhiteFideId "939935"]
[BlackFideId "2812320"]
[WhiteElo "2288"]
[BlackElo "2447"]
[Result "0-1"]
[Round "03"]
[TimeControl "180+1"]
[Date "2022.11.08"]
[WhiteClock "0:00:52"]
[BlackClock "0:00:37"]

1. a3 {[%clk 0:03:00]}  d5 {[%clk 0:02:56]} 2. d4 {[%clk 0:03:00]}  Nf6 {[%clk 0:02:56]} 3. Nf3 {[%clk 0:03:00]}  g6 {[%clk 0:02:56]} 4. c4 {[%clk 0:02:59]}  dxc4 {[%clk 0:02:47]} 5. Nc3 {[%clk 0:02:58]}  a6 {[%clk 0:02:40]} 6. e4 {[%clk 0:02:46]}  b5 {[%clk 0:02:40]} 7. h3 {[%clk 0:02:44]}  Bb7 {[%clk 0:02:38]} 8. Qc2 {[%clk 0:02:41]}  Bg7 {[%clk 0:02:34]} 9. Be2 {[%clk 0:02:40]}  O-O {[%clk 0:02:34]} 10. O-O {[%clk 0:02:40]}  c5 {[%clk 0:02:28]} 11. dxc5 {[%clk 0:02:37]}  Qc7 {[%clk 0:02:27]} 12. Be3 {[%clk 0:02:34]}  Nbd7 {[%clk 0:02:26]} 13. a4 {[%clk 0:02:19]}  b4 {[%clk 0:02:11]} 14. Nd5 {[%clk 0:02:19]}  Bxd5 {[%clk 0:01:56]} 15. exd5 {[%clk 0:02:20]}  Nxd5 {[%clk 0:01:57]} 16. Qxc4 {[%clk 0:02:11]}  Nxe3 {[%clk 0:01:53]} 17. fxe3 {[%clk 0:02:12]}  Qxc5 {[%clk 0:01:52]} 18. Qd3 {[%clk 0:02:01]}  Rad8 {[%clk 0:01:40]} 19. Rac1 {[%clk 0:01:59]}  Qa7 {[%clk 0:01:31]} 20. b3 {[%clk 0:01:49]}  Bc3 {[%clk 0:01:16]} 21. Qxa6 {[%clk 0:01:32]}  Qxe3+ {[%clk 0:01:15]} 22. Kh1 {[%clk 0:01:32]}  Nc5 {[%clk 0:01:11]} 23. Qc4 {[%clk 0:01:29]}  Ne4 {[%clk 0:01:11]} 24. Kh2 {[%clk 0:01:14]}  Qf4+ {[%clk 0:01:10]} 25. Kg1 {[%clk 0:01:12]}  Rc8 {[%clk 0:01:04]} 26. Qa6 {[%clk 0:01:13]}  Qe3+ {[%clk 0:01:00]} 27. Kh2 {[%clk 0:01:12]}  Qf4+ {[%clk 0:00:56]} 28. Kg1 {[%clk 0:01:12]}  Ng3 {[%clk 0:00:54]} 29. Bc4 {[%clk 0:01:07]}  Nxf1 {[%clk 0:00:47]} 30. Rxf1 {[%clk 0:01:08]}  Qe3+ {[%clk 0:00:43]} 31. Kh1 {[%clk 0:01:08]}  e6 {[%clk 0:00:42]} 32. a5 {[%clk 0:01:02]}  Qc5 {[%clk 0:00:42]} 33. Qb5 {[%clk 0:01:00]}  Qxb5 {[%clk 0:00:41]} 34. Bxb5 {[%clk 0:01:01]}  Rc5 {[%clk 0:00:41]} 35. Bc4 {[%clk 0:00:58]}  Rxa5 {[%clk 0:00:41]} 36. Ng1 {[%clk 0:00:56]}  Rfa8 {[%clk 0:00:39]} 37. Bd3 {[%clk 0:00:51]}  Ra1 {[%clk 0:00:38]} 38. Bb1 {[%clk 0:00:51]}  R8a3 {[%clk 0:00:38]} 39. Bc2 {[%clk 0:00:52]}  Rxf1 {[%clk 0:00:37]} 40. Kh2 {[%clk 0:00:52]} 0-1


[Site "https://www.chess.com"]

[Event "Titled Tuesday Blitz November 08 Late 2022"]
[White "Onslow, Alfie"]
[Black "Mladek, Richard"]
[WhiteFideId "436976"]
[BlackFideId "386588"]
[WhiteElo "2015"]
[BlackElo "2271"]
[Result "1-0"]
[Round "03"]
[TimeControl "180+1"]
[Date "2022.11.09"]
[WhiteClock "0:00:16"]
[BlackClock "0:00:28"]

1. e4 {[%clk 0:02:53]}  g6 {[%clk 0:02:56]} 2. d4 {[%clk 0:02:52]}  Bg7 {[%clk 0:02:56]} 3. Nf3 {[%clk 0:02:52]}  d6 {[%clk 0:02:56]} 4. Bc4 {[%clk 0:02:51]}  a6 {[%clk 0:02:55]} 5. O-O {[%clk 0:02:49]}  b5 {[%clk 0:02:44]} 6. Bb3 {[%clk 0:02:48]}  Bb7 {[%clk 0:02:43]} 7. Re1 {[%clk 0:02:45]}  e6 {[%clk 0:02:39]} 8. c3 {[%clk 0:02:37]}  h6 {[%clk 0:02:39]} 9. Nbd2 {[%clk 0:02:35]}  Nd7 {[%clk 0:02:39]} 10. Nf1 {[%clk 0:02:34]}  Ne7 {[%clk 0:02:38]} 11. a4 {[%clk 0:02:27]}  O-O {[%clk 0:02:36]} 12. Ng3 {[%clk 0:02:25]}  c5 {[%clk 0:02:34]} 13. Be3 {[%clk 0:02:22]}  Qc7 {[%clk 0:02:33]} 14. h4 {[%clk 0:02:20]}  Nf6 {[%clk 0:02:31]} 15. h5 {[%clk 0:02:08]}  Nxe4 {[%clk 0:02:08]} 16. Nxe4 {[%clk 0:02:04]}  Bxe4 {[%clk 0:02:09]} 17. hxg6 {[%clk 0:01:38]}  Nxg6 {[%clk 0:01:54]} 18. Nh2 {[%clk 0:01:35]}  c4 {[%clk 0:01:30]} 19. Bc2 {[%clk 0:01:33]}  Bxc2 {[%clk 0:01:29]} 20. Qxc2 {[%clk 0:01:34]}  f5 {[%clk 0:01:27]} 21. Ng4 {[%clk 0:01:17]}  Kh7 {[%clk 0:01:24]} 22. Bxh6 {[%clk 0:00:51]}  Bxh6 {[%clk 0:01:12]} 23. Rxe6 {[%clk 0:00:51]}  Rae8 {[%clk 0:01:02]} 24. Rxe8 {[%clk 0:00:43]}  Rxe8 {[%clk 0:01:01]} 25. Nf6+ {[%clk 0:00:43]}  Kh8 {[%clk 0:00:58]} 26. Nxe8 {[%clk 0:00:44]}  Qe7 {[%clk 0:00:54]} 27. Nxd6 {[%clk 0:00:35]}  Qxd6 {[%clk 0:00:53]} 28. Qxf5 {[%clk 0:00:36]}  Kg7 {[%clk 0:00:44]} 29. axb5 {[%clk 0:00:34]}  Ne7 {[%clk 0:00:42]} 30. Qg4+ {[%clk 0:00:26]}  Kf7 {[%clk 0:00:40]} 31. bxa6 {[%clk 0:00:19]}  Nc6 {[%clk 0:00:36]} 32. a7 {[%clk 0:00:17]}  Nxa7 {[%clk 0:00:36]} 33. Rxa7+ {[%clk 0:00:16]}  Kf6 {[%clk 0:00:37]} 34. Qf3+ {[%clk 0:00:14]}  Kg6 {[%clk 0:00:31]} 35. g3 {[%clk 0:00:14]}  Bg5 {[%clk 0:00:31]} 36. Qe4+ {[%clk 0:00:13]}  Kf6 {[%clk 0:00:28]} 37. f4 {[%clk 0:00:13]}  Bh6 {[%clk 0:00:26]} 38. Qe5+ {[%clk 0:00:13]}  Qxe5 {[%clk 0:00:26]} 39. fxe5+ {[%clk 0:00:14]}  Kf5 {[%clk 0:00:27]} 40. Rc7 {[%clk 0:00:14]}  Bc1 {[%clk 0:00:25]} 41. Rxc4 {[%clk 0:00:14]}  Bxb2 {[%clk 0:00:26]} 42. Kg2 {[%clk 0:00:13]}  Ke6 {[%clk 0:00:26]} 43. Kf3 {[%clk 0:00:14]}  Kd5 {[%clk 0:00:27]} 44. Rc5+ {[%clk 0:00:14]}  Ke6 {[%clk 0:00:27]} 45. Rb5 {[%clk 0:00:15]}  Bxc3 {[%clk 0:00:27]} 46. Ke4 {[%clk 0:00:15]}  Ba1 {[%clk 0:00:27]} 47. d5+ {[%clk 0:00:14]}  Ke7 {[%clk 0:00:27]} 48. Rb7+ {[%clk 0:00:15]}  Ke8 {[%clk 0:00:27]} 49. Kf5 {[%clk 0:00:16]}  Kf8 {[%clk 0:00:27]} 50. Ke6 {[%clk 0:00:16]}  Ke8 {[%clk 0:00:28]} 51. Rb8# {[%clk 0:00:16]} 1-0


[Site "https://www.chess.com"]

[Event "Titled Tuesday Blitz November 08 Late 2022"]
[White "Oye-Stromberg, Alexander"]
[Black "Lewtak, Damian"]
[WhiteFideId "1525999"]
[BlackFideId "1141724"]
[WhiteElo "2427"]
[BlackElo "2604"]
[Result "0-1"]
[Round "03"]
[TimeControl "180+1"]
[Date "2022.11.09"]
[WhiteClock "0:00:05"]
[BlackClock "0:00:13"]

1. e4 {[%clk 0:03:00]}  c5 {[%clk 0:02:59]} 2. Nf3 {[%clk 0:02:58]}  d6 {[%clk 0:02:59]} 3. d4 {[%clk 0:02:59]}  cxd4 {[%clk 0:03:00]} 4. Nxd4 {[%clk 0:02:59]}  Nf6 {[%clk 0:02:57]} 5. Nc3 {[%clk 0:02:59]}  Nc6 {[%clk 0:02:57]} 6. Bg5 {[%clk 0:02:58]}  e6 {[%clk 0:02:57]} 7. Qd2 {[%clk 0:02:59]}  a6 {[%clk 0:02:57]} 8. O-O-O {[%clk 0:02:58]}  Bd7 {[%clk 0:02:55]} 9. f4 {[%clk 0:02:58]}  b5 {[%clk 0:02:54]} 10. Nf3 {[%clk 0:02:58]}  b4 {[%clk 0:02:51]} 11. Bxf6 {[%clk 0:02:47]}  gxf6 {[%clk 0:02:47]} 12. Ne2 {[%clk 0:02:47]}  Qb6 {[%clk 0:02:43]} 13. Ned4 {[%clk 0:02:43]}  Nxd4 {[%clk 0:02:38]} 14. Qxd4 {[%clk 0:02:42]}  Qxd4 {[%clk 0:02:37]} 15. Nxd4 {[%clk 0:02:43]}  h5 {[%clk 0:02:34]} 16. f5 {[%clk 0:02:42]}  Bh6+ {[%clk 0:02:34]} 17. Kb1 {[%clk 0:02:42]}  Bf4 {[%clk 0:02:33]} 18. Bc4 {[%clk 0:02:38]}  Ke7 {[%clk 0:02:33]} 19. fxe6 {[%clk 0:02:20]}  fxe6 {[%clk 0:02:32]} 20. g3 {[%clk 0:02:18]}  Be5 {[%clk 0:02:31]} 21. Nf3 {[%clk 0:02:19]}  a5 {[%clk 0:02:29]} 22. Nxe5 {[%clk 0:02:13]}  fxe5 {[%clk 0:02:29]} 23. Rhf1 {[%clk 0:02:13]}  Rag8 {[%clk 0:02:25]} 24. Rf3 {[%clk 0:02:08]}  Rf8 {[%clk 0:02:17]} 25. Rfd3 {[%clk 0:02:04]}  Bc8 {[%clk 0:01:23]} 26. Rxd6 {[%clk 0:01:57]}  Rf2 {[%clk 0:01:21]} 27. R6d2 {[%clk 0:01:53]}  Rhf8 {[%clk 0:01:20]} 28. a3 {[%clk 0:01:50]}  bxa3 {[%clk 0:01:17]} 29. bxa3 {[%clk 0:01:49]}  Rxd2 {[%clk 0:01:17]} 30. Rxd2 {[%clk 0:01:50]}  Bd7 {[%clk 0:01:17]} 31. Ka2 {[%clk 0:01:36]}  Bc6 {[%clk 0:01:15]} 32. Bd3 {[%clk 0:01:36]}  Rf3 {[%clk 0:01:05]} 33. Re2 {[%clk 0:01:33]}  Kd6 {[%clk 0:01:00]} 34. Kb3 {[%clk 0:01:25]}  Kc5 {[%clk 0:00:57]} 35. Kc3 {[%clk 0:01:25]}  Rf1 {[%clk 0:00:52]} 36. Rg2 {[%clk 0:00:56]}  Rh1 {[%clk 0:00:50]} 37. Kd2 {[%clk 0:00:35]}  Ra1 {[%clk 0:00:48]} 38. h3 {[%clk 0:00:35]}  Rxa3 {[%clk 0:00:47]} 39. g4 {[%clk 0:00:36]}  hxg4 {[%clk 0:00:48]} 40. hxg4 {[%clk 0:00:37]}  Ra1 {[%clk 0:00:43]} 41. g5 {[%clk 0:00:36]}  Rb1 {[%clk 0:00:39]} 42. g6 {[%clk 0:00:32]}  Rb8 {[%clk 0:00:39]} 43. g7 {[%clk 0:00:30]}  Rg8 {[%clk 0:00:39]} 44. Kc3 {[%clk 0:00:30]}  Kd6 {[%clk 0:00:37]} 45. Rg5 {[%clk 0:00:16]}  Bd7 {[%clk 0:00:34]} 46. Bc4 {[%clk 0:00:15]}  a4 {[%clk 0:00:32]} 47. Kb4 {[%clk 0:00:14]}  Ke7 {[%clk 0:00:28]} 48. Rxe5 {[%clk 0:00:09]}  Rxg7 {[%clk 0:00:25]} 49. Ra5 {[%clk 0:00:09]}  Rg4 {[%clk 0:00:23]} 50. e5 {[%clk 0:00:09]}  Kd8 {[%clk 0:00:20]} 51. Kc5 {[%clk 0:00:09]}  Re4 {[%clk 0:00:15]} 52. Ra8+ {[%clk 0:00:08]}  Kc7 {[%clk 0:00:13]} 53. Ra7+ {[%clk 0:00:08]}  Kd8 {[%clk 0:00:13]} 54. Kd6 {[%clk 0:00:04]}  Rd4+ {[%clk 0:00:13]} 55. Kc5 {[%clk 0:00:04]}  Rd2 {[%clk 0:00:12]} 56. Bd3 {[%clk 0:00:04]}  Ke7 {[%clk 0:00:10]} 57. Bb5 {[%clk 0:00:04]}  Rd5+ {[%clk 0:00:10]} 58. Kc4 {[%clk 0:00:03]}  Rxb5 {[%clk 0:00:10]} 59. Rxd7+ {[%clk 0:00:02]}  Kxd7 {[%clk 0:00:11]} 60. Kxb5 {[%clk 0:00:03]}  a3 {[%clk 0:00:12]} 61. Kb6 {[%clk 0:00:03]}  a2 {[%clk 0:00:12]} 62. c4 {[%clk 0:00:04]}  a1=Q {[%clk 0:00:13]} 63. c5 {[%clk 0:00:05]}  Qb2+ {[%clk 0:00:13]} 64. Ka6 {[%clk 0:00:05]}  Kc6 {[%clk 0:00:13]} 65. Ka7 {[%clk 0:00:05]}  Qb7# {[%clk 0:00:13]} 0-1


[Site "https://www.chess.com"]

[Event "Titled Tuesday Blitz November 08 Late 2022"]
[White "Paiva, Henrique M A Albergaria"]
[Black "Young, Ryan"]
[WhiteFideId "1920995"]
[BlackFideId "2049945"]
[WhiteElo "1953"]
[BlackElo "2280"]
[Result "1/2-1/2"]
[Round "03"]
[TimeControl "180+1"]
[Date "2022.11.09"]
[WhiteClock "0:00:17"]
[BlackClock "0:00:21"]

1. e4 {[%clk 0:03:00]}  e5 {[%clk 0:02:54]} 2. Nf3 {[%clk 0:02:54]}  Nc6 {[%clk 0:02:54]} 3. Bb5 {[%clk 0:02:52]}  a6 {[%clk 0:02:52]} 4. Ba4 {[%clk 0:02:49]}  b5 {[%clk 0:02:52]} 5. Bb3 {[%clk 0:02:48]}  Na5 {[%clk 0:02:52]} 6. Nxe5 {[%clk 0:02:15]}  Nxb3 {[%clk 0:02:50]} 7. axb3 {[%clk 0:02:15]}  Qg5 {[%clk 0:02:51]} 8. d4 {[%clk 0:01:54]}  Qxg2 {[%clk 0:02:50]} 9. Qf3 {[%clk 0:01:54]}  Qxf3 {[%clk 0:02:49]} 10. Nxf3 {[%clk 0:01:54]}  Bb7 {[%clk 0:02:49]} 11. O-O {[%clk 0:01:40]}  Bxe4 {[%clk 0:02:45]} 12. Re1 {[%clk 0:01:39]}  f5 {[%clk 0:02:40]} 13. Nfd2 {[%clk 0:01:17]}  Nf6 {[%clk 0:02:35]} 14. f3 {[%clk 0:01:15]}  d5 {[%clk 0:02:21]} 15. fxe4 {[%clk 0:01:15]}  fxe4 {[%clk 0:02:22]} 16. c4 {[%clk 0:01:13]}  c6 {[%clk 0:02:19]} 17. Nc3 {[%clk 0:01:12]}  Bb4 {[%clk 0:02:02]} 18. Nf1 {[%clk 0:01:05]}  O-O {[%clk 0:01:59]} 19. Be3 {[%clk 0:00:56]}  Ng4 {[%clk 0:01:55]} 20. h3 {[%clk 0:00:53]}  Nxe3 {[%clk 0:01:52]} 21. Rxe3 {[%clk 0:00:51]}  Bxc3 {[%clk 0:01:20]} 22. bxc3 {[%clk 0:00:48]}  bxc4 {[%clk 0:01:08]} 23. b4 {[%clk 0:00:41]}  Rf7 {[%clk 0:00:57]} 24. Ng3 {[%clk 0:00:38]}  Rf6 {[%clk 0:00:53]} 25. Rf1 {[%clk 0:00:37]}  Rxf1+ {[%clk 0:00:51]} 26. Kxf1 {[%clk 0:00:36]}  a5 {[%clk 0:00:52]} 27. bxa5 {[%clk 0:00:34]}  Rxa5 {[%clk 0:00:53]} 28. Nf5 {[%clk 0:00:29]}  Kf7 {[%clk 0:00:47]} 29. Re2 {[%clk 0:00:21]}  Ra3 {[%clk 0:00:43]} 30. Rc2 {[%clk 0:00:21]}  g6 {[%clk 0:00:42]} 31. Ne3 {[%clk 0:00:20]}  Ke6 {[%clk 0:00:41]} 32. Ke2 {[%clk 0:00:21]}  Ra1 {[%clk 0:00:40]} 33. Rb2 {[%clk 0:00:20]}  Rh1 {[%clk 0:00:39]} 34. Rb6 {[%clk 0:00:18]}  Kd6 {[%clk 0:00:38]} 35. Ng4 {[%clk 0:00:18]}  Rxh3 {[%clk 0:00:33]} 36. Ne5 {[%clk 0:00:18]}  Rxc3 {[%clk 0:00:28]} 37. Rxc6+ {[%clk 0:00:18]}  Ke7 {[%clk 0:00:29]} 38. Rc7+ {[%clk 0:00:18]}  Kf6 {[%clk 0:00:28]} 39. Rxh7 {[%clk 0:00:18]}  Rc2+ {[%clk 0:00:25]} 40. Ke3 {[%clk 0:00:19]}  Ra2 {[%clk 0:00:25]} 41. Kf4 {[%clk 0:00:19]}  Rf2+ {[%clk 0:00:23]} 42. Kg3 {[%clk 0:00:19]}  Rd2 {[%clk 0:00:21]} 43. Kf4 {[%clk 0:00:19]}  Rxd4 {[%clk 0:00:19]} 44. Rf7+ {[%clk 0:00:14]}  Ke6 {[%clk 0:00:20]} 45. Rc7 {[%clk 0:00:14]}  Rd1 {[%clk 0:00:19]} 46. Rc6+ {[%clk 0:00:12]}  Ke7 {[%clk 0:00:18]} 47. Nxg6+ {[%clk 0:00:12]}  Kd7 {[%clk 0:00:18]} 48. Ne5+ {[%clk 0:00:11]}  Kd8 {[%clk 0:00:18]} 49. Kf5 {[%clk 0:00:12]}  Rh1 {[%clk 0:00:16]} 50. Ke6 {[%clk 0:00:12]}  Rh6+ {[%clk 0:00:16]} 51. Kxd5 {[%clk 0:00:12]}  Rxc6 {[%clk 0:00:16]} 52. Nxc6+ {[%clk 0:00:12]}  Kc7 {[%clk 0:00:15]} 53. Na5 {[%clk 0:00:12]}  c3 {[%clk 0:00:15]} 54. Kxe4 {[%clk 0:00:10]}  Kb6 {[%clk 0:00:12]} 55. Nb3 {[%clk 0:00:10]}  Kb5 {[%clk 0:00:12]} 56. Kd3 {[%clk 0:00:11]}  Kb4 {[%clk 0:00:13]} 57. Kc2 {[%clk 0:00:10]}  Kc4 {[%clk 0:00:13]} 58. Na5+ {[%clk 0:00:11]}  Kb5 {[%clk 0:00:13]} 59. Nb3 {[%clk 0:00:12]}  Ka4 {[%clk 0:00:13]} 60. Nc1 {[%clk 0:00:12]}  Kb5 {[%clk 0:00:14]} 61. Ne2 {[%clk 0:00:13]}  Kc6 {[%clk 0:00:15]} 62. Nf4 {[%clk 0:00:14]}  Kc7 {[%clk 0:00:16]} 63. Nd3 {[%clk 0:00:14]}  Kd7 {[%clk 0:00:17]} 64. Ne1 {[%clk 0:00:15]}  Ke8 {[%clk 0:00:18]} 65. Ng2 {[%clk 0:00:15]}  Kf8 {[%clk 0:00:19]} 66. Ne3 {[%clk 0:00:16]}  Kg8 {[%clk 0:00:20]} 67. Nd5 {[%clk 0:00:16]}  Kh8 {[%clk 0:00:21]} 68. Nxc3 {[%clk 0:00:17]} 1/2-1/2


[Site "https://www.chess.com"]

[Event "Titled Tuesday Blitz November 08 Late 2022"]
[White "Perez Ponsa, Federico"]
[Black "Do Nascimento,Christian Almeida"]
[WhiteFideId "117927"]
[BlackFideId "2143801"]
[WhiteElo "2836"]
[BlackElo "2519"]
[Result "1-0"]
[Round "03"]
[TimeControl "180+1"]
[Date "2022.11.09"]
[WhiteClock "0:01:07"]
[BlackClock "0:00:07"]

1. e4 {[%clk 0:03:00]}  c5 {[%clk 0:02:58]} 2. Nf3 {[%clk 0:02:59]}  d6 {[%clk 0:02:58]} 3. Nc3 {[%clk 0:02:59]}  Nf6 {[%clk 0:02:58]} 4. e5 {[%clk 0:02:59]}  dxe5 {[%clk 0:02:58]} 5. Nxe5 {[%clk 0:03:00]}  Nbd7 {[%clk 0:02:54]} 6. Nc4 {[%clk 0:02:57]}  e6 {[%clk 0:02:52]} 7. g3 {[%clk 0:02:57]}  Be7 {[%clk 0:02:53]} 8. Bg2 {[%clk 0:02:57]}  O-O {[%clk 0:02:53]} 9. O-O {[%clk 0:02:58]}  Rb8 {[%clk 0:02:49]} 10. a4 {[%clk 0:02:54]}  b6 {[%clk 0:02:48]} 11. d3 {[%clk 0:02:54]}  Bb7 {[%clk 0:02:48]} 12. Bf4 {[%clk 0:02:55]}  Bxg2 {[%clk 0:02:47]} 13. Kxg2 {[%clk 0:02:56]}  Rc8 {[%clk 0:02:43]} 14. Qf3 {[%clk 0:02:52]}  Nb8 {[%clk 0:02:36]} 15. Nb5 {[%clk 0:02:49]}  Nc6 {[%clk 0:02:31]} 16. Ne5 {[%clk 0:02:41]}  Nd4 {[%clk 0:02:24]} 17. Nxd4 {[%clk 0:02:41]}  cxd4 {[%clk 0:02:23]} 18. Nc6 {[%clk 0:02:40]}  Qd7 {[%clk 0:02:19]} 19. Nxe7+ {[%clk 0:02:40]}  Qxe7 {[%clk 0:02:20]} 20. Be5 {[%clk 0:02:41]}  Rxc2 {[%clk 0:02:12]} 21. Bxd4 {[%clk 0:02:41]}  Rc7 {[%clk 0:01:45]} 22. a5 {[%clk 0:02:35]}  b5 {[%clk 0:01:44]} 23. Be5 {[%clk 0:02:31]}  Rd7 {[%clk 0:01:40]} 24. Rac1 {[%clk 0:02:26]}  Nd5 {[%clk 0:01:33]} 25. Rfe1 {[%clk 0:02:21]}  a6 {[%clk 0:01:29]} 26. Bd4 {[%clk 0:02:10]}  Rc7 {[%clk 0:01:22]} 27. Qg4 {[%clk 0:02:07]}  f5 {[%clk 0:01:13]} 28. Qf3 {[%clk 0:02:01]}  Rfc8 {[%clk 0:01:13]} 29. Qxd5 {[%clk 0:01:33]}  Rxc1 {[%clk 0:01:04]} 30. Rxe6 {[%clk 0:01:32]}  Qf7 {[%clk 0:00:51]} 31. Qe5 {[%clk 0:01:31]}  Qb7+ {[%clk 0:00:40]} 32. Kh3 {[%clk 0:01:29]}  Qf7 {[%clk 0:00:11]} 33. Re7 {[%clk 0:01:07]}  Qf6 {[%clk 0:00:07]} 34. Qd5+ {[%clk 0:01:07]} 1-0


[Site "https://www.chess.com"]